bitfinex/quotes_ETHUSD_20251010
["timestamp","ask_amount","ask_price","bid_price","bid_amount"]
[1760096406186,17.01062336,4345.9,4345.8,1.081]
[1760096406391,15.40302736,4345.9,4345.8,1.081]
[1760096406725,12.67242236,4345.9,4345.8,1.081]
[1760096407495,19.10051261,4345.9,4345.8,1.081]
[1760096407691,19.10051261,4345.9,4345.8,0.93119269]
[1760096408596,19.30301261,4345.9,4345.8,0.93119269]
[1760096409500,6.04734161,4345.9,4345.8,0.93119269]
[1760096409798,23.04253161,4345.9,4345.8,0.93119269]
[1760096410180,23.87021515,4345.9,4345.8,0.93119269]
[1760096410586,20.01922215,4345.9,4345.8,0.93119269]
[1760096411519,18.23927115,4345.9,4345.8,0.93119269]
[1760096411686,21.64699715,4345.9,4345.8,0.93119269]
[1760096412321,14.53626661,4345.9,4345.8,0.93119269]
[1760096412502,10.14047861,4345.9,4345.8,0.93119269]
[1760096412817,20.01899361,4345.9,4345.8,0.93119269]
[1760096413314,19.25105461,4345.9,4345.8,0.93119269]
[1760096413714,22.35282461,4345.9,4345.8,0.93119269]
[1760096413895,14.11979715,4345.9,4345.8,0.93119269]
[1760096414297,13.29211361,4345.9,4345.8,0.93119269]
[1760096414823,11.70895861,4345.9,4345.8,0.93119269]
[1760096415719,17.22976361,4345.9,4345.8,0.93119269]
[1760096415921,15.53244161,4345.9,4345.8,0.93119269]
[1760096416683,6.04654161,4345.9,4345.8,0.93119269]
[1760096416881,20.56854661,4345.9,4345.8,0.93119269]
[1760096418222,16.15195261,4345.9,4345.8,0.93119269]
[1760096418719,16.15195261,4345.9,4345.8,0.93219269]
[1760096418901,16.57795261,4345.9,4345.8,0.93219269]
[1760096419488,10.84872661,4345.9,4345.8,0.93219269]
[1760096419697,14.17640444,4345.9,4345.8,0.93219269]
[1760096419914,19.88100705,4345.9,4345.8,0.93219269]
[1760096420118,19.26079244,4345.9,4345.8,0.93219269]
[1760096420924,23.33538444,4345.9,4345.8,0.93219269]
[1760096421224,11.03475744,4345.9,4345.8,0.93219269]
[1760096421423,5.532032,4345.9,4345.8,0.93219269]
[1760096421792,6.165632,4345.9,4345.8,0.93219269]
[1760096422120,3.11072226,4345.9,4345.8,0.93219269]
[1760096422319,5.41174161,4345.9,4345.8,0.93219269]
[1760096422519,6.04534161,4345.9,4345.8,0.93219269]
[1760096422693,5.41174161,4345.9,4345.8,0.93219269]
[1760096422890,3.11072226,4345.9,4345.8,0.93219269]
[1760096423097,3.22512226,4345.9,4345.8,0.93219269]
[1760096423403,3.85872226,4345.9,4345.8,0.93219269]
[1760096423803,0.69422847,4345.9,4345.8,1.21721196]
[1760096424000,0.00240001,4345.9,4345.8,1.68951196]
[1760096424388,0.00240001,4345.9,4345.8,1.21721196]
[1760096424928,0.00240001,4345.9,4345.8,1.68951196]
[1760096426826,0.00240001,4345.9,4345.8,3.63268425]
[1760096427008,0.00240001,4345.9,4345.8,4.10498425]
[1760096428825,0.00240001,4345.9,4345.8,3.86341927]
[1760096429025,0.00240001,4345.9,4345.8,5.78041927]
[1760096429205,0.00240001,4345.9,4345.8,8.08149156]
[1760096429608,0.00240001,4345.9,4345.8,8.54899156]
[1760096430543,0.00240001,4345.9,4345.8,3.86341927]
[1760096430712,0.00240001,4345.9,4345.8,8.08149156]
[1760096431140,0.00240001,4345.9,4345.8,8.54899156]
[1760096431946,0.00240001,4345.9,4345.8,6.24791927]
[1760096432438,0.00240001,4345.9,4345.8,8.08149156]
[1760096432841,0.00240001,4345.9,4345.8,8.54899156]
[1760096433003,0.00240001,4345.9,4345.8,6.24791927]
[1760096433448,0.00240001,4345.9,4345.8,8.54899156]
[1760096433908,0.00160001,4345.9,4345.8,8.54899156]
[1760096436640,0.00160001,4345.9,4345.8,5.78041927]
[1760096436845,0.00160001,4345.9,4345.8,6.24791927]
[1760096437239,0.00160001,4345.9,4345.8,5.78041927]
[1760096437912,0.00160001,4345.9,4345.8,8.08149156]
[1760096438112,0.00160001,4345.9,4345.8,5.78041927]
[1760096439348,0.00160001,4345.9,4345.8,8.08149156]
[1760096440247,0.00160001,4345.9,4345.8,8.54899156]
[1760096442918,0.00160001,4345.9,4345.8,6.24791927]
[1760096443425,0.00160001,4345.9,4345.8,5.78041927]
[1760096444449,0.00160001,4345.9,4345.8,0.40041927]
[1760096444646,0.00160001,4345.9,4345.8,5.4954]
[1760096445033,0.00160001,4345.9,4345.8,7.79647229]
[1760096445327,0.00160001,4345.9,4345.8,8.26397229]
[1760096449257,0.00160001,4345.9,4345.8,7.79647229]
[1760096449434,0.00160001,4345.9,4345.8,8.22457229]
[1760096449634,0.00160001,4345.9,4345.8,9.27724614]
[1760096455983,0.00080001,4345.9,4345.8,9.27724614]
[1760096469019,0.00080001,4345.9,4345.8,13.41186438]
[1760096473304,0.00080001,4345.9,4345.8,17.54648262]
[1760096473702,0.00080001,4345.9,4345.8,3.46914614]
[1760096473903,0.00080001,4345.9,4345.8,14.13317229]
[1760096474341,0.00080001,4345.9,4345.8,2.76617229]
[1760096474514,0.00080001,4345.9,4345.8,14.13317229]
[1760096475341,0.00080001,4345.9,4345.8,2.76617229]
[1760096475719,0.00080001,4345.9,4345.8,14.13317229]
[1760096475914,0.00080001,4345.9,4345.8,4.82316797]
[1760096476143,0.00080001,4345.9,4345.8,8.14417229]
[1760096477550,0.00080001,4345.9,4345.8,0.001]
[1760096477731,0.00080001,4345.9,4345.8,1.917]
[1760096477940,1e-08,4345.9,4345.8,5.379]
[1760096478243,1e-08,4345.9,4345.8,7.68007229]
[1760096479443,1e-08,4345.9,4345.8,5.379]
[1760096481007,1e-08,4345.9,4345.8,7.68007229]
[1760096481532,1e-08,4345.9,4345.8,8.14417229]
[1760096483647,1e-08,4345.9,4345.8,7.68007229]
[1760096483846,1e-08,4345.9,4345.8,5.379]
[1760096484211,1e-08,4345.9,4345.8,7.68007229]
[1760096487164,1e-08,4345.9,4345.8,8.14417229]
[1760096487574,1e-08,4345.9,4345.8,13.33486508]
[1760096496757,1e-08,4345.9,4345.8,13.44926508]
[1760096499996,0.00120001,4346.4,4346.3,2.30080758]
[1760096500291,0.00120001,4346.4,4346.3,5.76280758]
[1760096500490,0.00120001,4346.4,4346.3,5.87720758]
[1760096500704,0.00120001,4346.4,4346.3,6.30670758]
[1760096501312,0.00120001,4346.4,4346.3,6.79608437]
[1760096512997,0.00120001,4346.4,4346.3,4.06577679]
[1760096513196,0.00120001,4346.4,4346.3,5.4924]
[1760096513439,0.00120001,4346.4,4346.3,8.26100758]
[1760096515450,0.00120001,4346.4,4346.3,2.88300758]
[1760096515604,0.00120001,4346.4,4346.3,8.26100758]
[1760096516028,0.00120001,4346.4,4346.3,2.88300758]
[1760096516246,0.00120001,4346.4,4346.3,6.34500758]
[1760096516449,0.00120001,4346.4,4346.3,8.26100758]
[1760096516650,0.00120001,4346.4,4346.3,2.88300758]
[1760096516971,0.00120001,4346.4,4346.3,8.26100758]
[1760096519227,0.00120001,4346.4,4346.3,9.91609916]
[1760096520339,0.00120001,4346.4,4346.3,8.26100758]
[1760096521271,0.00120001,4346.4,4346.3,5.9602]
[1760096521441,0.00120001,4346.4,4346.3,8.26100758]
[1760096521638,0.00120001,4346.4,4346.3,5.9602]
[1760096521945,0.00120001,4346.4,4346.3,5.9612]
[1760096522147,0.00040001,4346.4,4346.3,5.9612]
[1760096522369,0.00040001,4346.4,4346.3,8.26200758]
[1760096527472,0.00040001,4346.4,4346.3,0.1154]
[1760096527670,0.00040001,4346.4,4346.3,7.79420758]
[1760096528666,0.00040001,4346.4,4346.3,5.4934]
[1760096528871,0.00040001,4346.4,4346.3,0.001]
[1760096529072,0.00040001,4346.4,4346.3,4.3]
[1760096529435,0.10461807,4346.4,4346.3,4.3]
[1760096530128,2.40537271,4346.4,4346.3,4.3]
[1760096530472,2.40537271,4346.4,4346.3,0.001]
[1760096530473,3.04017271,4346.4,4346.3,0.001]
[1760096530680,3.04017271,4346.4,4346.3,5.379]
[1760096530886,3.04017271,4346.4,4346.3,3.463]
[1760096530887,11.31957974,4346.4,4346.3,3.463]
[1760096531096,11.31957974,4346.4,4346.3,0.001]
[1760096531276,12.14726328,4346.4,4346.3,0.001]
[1760096531451,12.14726328,4346.4,4345.8,0.001]
[1760096531452,0.6336,4346.0,4345.8,0.001]
[1760096531652,20.94304815,4345.5,4345.4,1e-08]
[1760096531879,15.84221418,4345.5,4345.4,1.56400001]
[1760096532184,16.53550758,4345.5,4345.4,1.56400001]
[1760096532387,15.53839858,4345.5,4345.4,1.56400001]
[1760096532772,16.28109158,4345.5,4345.4,1.56400001]
[1760096533486,16.89857627,4345.5,4345.4,1.56400001]
[1760096533660,4.36068812,4345.5,4345.4,1.56400001]
[1760096533865,6.04443458,4345.5,4345.4,1.56400001]
[1760096534068,17.83690858,4345.5,4345.4,1.56400001]
[1760096534603,13.91670758,4345.5,4345.4,1.56400001]
[1760096534754,4.91332455,4345.5,4345.4,1.56400001]
[1760096535093,5.54692455,4345.5,4345.4,1.56400001]
[1760096535388,5.54812455,4345.5,4345.4,1.56400001]
[1760096536289,11.27314055,4345.5,4345.4,3.46400001]
[1760096536489,9.26591855,4345.5,4345.4,3.46400001]
[1760096537191,14.28887555,4345.5,4345.4,3.46400001]
[1760096537380,7.56175855,4345.5,4345.4,3.46400001]
[1760096538060,7.56685855,4345.5,4345.4,3.46400001]
[1760096539212,15.72959655,4345.5,4345.4,3.46400001]
[1760096539378,12.99835855,4345.5,4345.4,3.46400001]
[1760096540084,5.54812455,4345.5,4345.4,3.46400001]
[1760096540292,13.26007455,4345.5,4345.4,3.46400001]
[1760096541173,11.24728555,4345.5,4345.4,3.46400001]
[1760096541506,5.54812455,4345.5,4345.4,3.46400001]
[1760096541725,13.66217655,4345.5,4345.4,3.46400001]
[1760096544077,18.22928887,4345.5,4345.4,3.46400001]
[1760096544283,13.71210055,4345.5,4345.4,3.46400001]
[1760096544994,14.04072655,4345.5,4345.4,3.46400001]
[1760096545183,8.62101655,4345.5,4345.4,3.46400001]
[1760096546001,5.54732455,4345.5,4345.4,3.46400001]
[1760096546227,9.22988055,4345.5,4345.4,3.46400001]
[1760096547119,15.62910555,4345.5,4345.4,3.46400001]
[1760096547512,16.12136109,4345.5,4345.4,3.46400001]
[1760096548103,16.87194709,4345.5,4345.4,3.46400001]
[1760096548303,15.23085709,4345.5,4345.4,3.46400001]
[1760096549036,13.95877109,4345.5,4345.4,3.46400001]
[1760096549241,9.91102109,4345.5,4345.4,3.46400001]
[1760096550236,16.35393709,4345.5,4345.4,1e-08]
[1760096550406,12.86693709,4345.5,4345.4,1e-08]
[1760096551307,36.32002341,4345.5,4345.4,1e-08]
[1760096551508,33.80049207,4345.3,4345.2,1.05231706]
[1760096551707,19.86204161,4345.3,4345.2,1.05231706]
[1760096552038,19.86324161,4345.3,4345.2,1.05231706]
[1760096552210,20.80866272,4345.3,4345.2,1.05231706]
[1760096553304,27.90248272,4345.3,4345.2,1.05231706]
[1760096553733,4.85499003,4345.2,4345.1,0.001]
[1760096553947,27.34701057,4345.2,4345.1,0.001]
[1760096554245,19.35406957,4345.2,4345.1,0.001]
[1760096554403,19.44635465,4345.2,4345.1,0.001]
[1760096555219,29.55319033,4345.2,4345.1,0.001]
[1760096555420,23.09104802,4345.2,4345.1,0.001]
[1760096556029,22.47356333,4345.2,4345.1,0.001]
[1760096556232,10.41949833,4345.2,4345.1,0.001]
[1760096556441,29.44486933,4345.2,4345.1,0.001]
[1760096557443,41.65813857,4345.2,4345.1,0.001]
[1760096557834,40.41949833,4345.2,4345.1,0.001]
[1760096558347,34.969443,4345.1,4344.7,0.001]
[1760096558515,17.04268254,4345.1,4344.7,0.001]
[1760096558848,17.04388254,4345.1,4344.7,0.001]
[1760096559014,17.13617422,4345.1,4344.7,0.001]
[1760096559549,28.28094343,4345.1,4344.7,0.001]
[1760096560045,27.04534222,4345.1,4344.7,0.001]
[1760096560250,25.02644291,4344.8,4344.7,0.001]
[1760096560450,36.639872,4344.8,4344.7,0.001]
[1760096560609,36.641072,4344.8,4344.7,0.001]
[1760096560942,13.38292807,4344.8,4344.7,0.001]
[1760096561129,13.50325212,4344.8,4344.7,0.001]
[1760096561332,22.71090812,4344.8,4344.7,0.001]
[1760096562051,18.4103385,4344.8,4344.7,0.001]
[1760096562348,18.2601175,4344.8,4344.7,0.001]
[1760096562844,17.8376985,4344.8,4344.7,0.001]
[1760096563420,11.1586154,4344.8,4344.7,0.001]
[1760096564245,13.5862024,4344.8,4344.7,0.001]
[1760096564548,16.7572024,4344.8,4344.7,0.001]
[1760096564749,15.9324015,4344.8,4344.7,0.001]
[1760096565445,17.9808175,4344.8,4344.7,0.001]
[1760096566036,10.3338145,4344.8,4344.7,0.001]
[1760096566241,15.8170445,4344.8,4344.7,0.001]
[1760096566555,16.3190445,4344.8,4344.7,0.001]
[1760096567652,14.07717841,4344.8,4344.7,0.001]
[1760096568648,29.62725541,4344.8,4344.7,0.001]
[1760096568865,28.23225541,4344.8,4344.7,0.001]
[1760096569538,28.74475341,4344.8,4344.7,0.001]
[1760096570854,34.44621541,4344.8,4344.7,0.001]
[1760096571852,34.62207441,4344.8,4344.7,0.001]
[1760096572551,31.38760841,4344.8,4344.7,0.001]
[1760096572725,31.56057741,4344.8,4344.7,0.001]
[1760096573257,30.46321441,4344.8,4344.7,0.001]
[1760096573933,31.15140441,4344.8,4344.7,0.001]
[1760096574950,36.55094341,4344.8,4344.7,0.001]
[1760096575746,35.77840441,4344.8,4344.7,0.001]
[1760096575959,36.92087541,4344.8,4344.7,0.001]
[1760096576474,36.36742241,4344.8,4344.7,0.001]
[1760096576897,36.36742241,4344.8,4344.5,3.465]
[1760096576898,34.96965488,4344.7,4344.5,0.001]
[1760096577054,34.85530786,4344.6,4344.5,0.001]
[1760096577257,2.30197279,4344.1,4343.8,0.001]
[1760096577471,23.49759456,4344.1,4343.8,0.001]
[1760096577682,16.11949407,4344.1,4343.8,0.001]
[1760096577843,14.35815143,4344.1,4343.8,0.001]
[1760096578044,24.90890843,4344.1,4343.8,0.001]
[1760096578255,21.50222943,4344.1,4343.8,0.001]
[1760096578476,18.16229007,4344.1,4343.8,0.001]
[1760096578988,18.50505107,4344.1,4343.8,0.001]
[1760096579276,4.71542833,4344.1,4343.9,0.747]
[1760096579481,7.8334837,4344.1,4343.9,0.747]
[1760096579717,11.98728224,4344.1,4343.8,0.001]
[1760096579881,12.81300477,4344.1,4343.8,0.001]
[1760096580177,16.18607274,4344.1,4343.8,0.001]
[1760096580379,5.34782833,4344.1,4343.8,0.001]
[1760096581169,5.96730716,4344.1,4343.8,0.001]
[1760096581851,4.04730716,4344.1,4343.8,0.001]
[1760096582175,9.48856224,4344.1,4343.8,0.001]
[1760096583045,17.87202824,4344.1,4343.8,0.001]
[1760096583246,17.55504624,4344.1,4343.8,0.001]
[1760096583465,9.48856224,4344.1,4343.8,0.001]
[1760096584004,9.48736224,4344.1,4343.8,0.001]
[1760096584384,5.34782833,4344.1,4343.8,0.001]
[1760096586702,9.48856224,4344.1,4343.8,0.001]
[1760096587480,5.34782833,4344.1,4343.8,0.001]
[1760096588302,5.34782833,4344.1,4344.0,3.466]
[1760096588885,5.34822833,4344.1,4344.0,3.466]
[1760096593512,5.34702833,4344.1,4344.0,3.466]
[1760096594625,5.34822833,4344.1,4344.0,3.466]
[1760096595416,5.35154786,4344.1,4344.0,3.466]
[1760096595818,5.35354786,4344.1,4344.0,3.466]
[1760096597789,5.35234786,4344.1,4344.0,3.466]
[1760096602337,5.35354786,4344.1,4344.0,3.466]
[1760096602998,5.35234786,4344.1,4344.0,3.466]
[1760096607630,2.41757507,4344.1,4344.0,3.466]
[1760096607805,1.922,4344.1,4344.0,4.45230208]
[1760096608009,0.002,4344.1,4344.0,4.45230208]
[1760096608521,0.002,4344.1,4344.0,4.00680208]
[1760096608718,0.002,4344.1,4344.0,3.466]
[1760096608923,0.002,4344.1,4344.0,3.9115]
[1760096609430,0.002,4344.1,4344.0,3.466]
[1760096610634,0.0012,4344.1,4344.0,3.466]
[1760096611916,0.0012,4344.1,4344.0,6.21352578]
[1760096612117,0.0012,4344.1,4344.0,7.2707327]
[1760096612322,0.0012,4344.1,4344.0,4.96870692]
[1760096613870,0.0012,4344.1,4344.0,7.2707327]
[1760096614366,0.0012,4344.1,4344.0,4.96870692]
[1760096614532,0.0012,4344.1,4344.0,4.52320692]
[1760096615940,0.0012,4344.1,4344.0,3.466]
[1760096616374,0.0012,4344.1,4344.0,5.384]
[1760096622383,0.0012,4344.1,4344.0,5.8295]
[1760096623050,0.0012,4344.1,4344.0,8.13152578]
[1760096623358,0.0012,4344.1,4344.0,12.27105969]
[1760096623558,0.0012,4344.1,4344.0,9.7033425]
[1760096625783,0.0012,4344.1,4344.0,9.7013425]
[1760096626140,0.0012,4344.1,4344.0,6.95381672]
[1760096626341,0.0012,4344.1,4344.0,7.79842578]
[1760096626573,0.0012,4344.1,4344.0,8.24392578]
[1760096632691,0.0004,4344.1,4344.0,8.24392578]
[1760096635201,0.0004,4344.1,4344.0,13.11430518]
[1760096636505,0.0004,4344.1,4344.0,8.24392578]
[1760096636706,0.0004,4344.1,4344.0,9.29863122]
[1760096648501,0.0004,4344.1,4344.0,9.18423122]
[1760096648834,0.0004,4344.1,4344.0,9.29863122]
[1760096650544,0.0004,4344.1,4344.0,3.91763122]
[1760096650722,0.0004,4344.1,4344.0,15.29063122]
[1760096654558,0.0016,4344.6,4344.5,2.30176084]
[1760096654725,0.0016,4344.6,4344.5,5.76676084]
[1760096654919,0.0016,4344.6,4344.5,6.33566084]
[1760096658065,0.0016,4344.6,4344.5,7.19940994]
[1760096659183,0.0016,4344.6,4344.5,12.06978934]
[1760096664973,0.0016,4344.6,4344.5,3.73440994]
[1760096665180,0.0016,4344.6,4344.5,8.25066084]
[1760096666301,0.0016,4344.6,4344.5,8.25166084]
[1760096667155,0.0016,4344.6,4344.5,13.12204024]
[1760096676575,0.0008,4344.6,4344.5,13.12204024]
[1760096687912,0.0008,4344.6,4344.5,8.25166084]
[1760096688299,0.0008,4344.6,4344.5,4.52610994]
[1760096688612,0.0008,4344.6,4344.5,8.25166084]
[1760096688837,0.0008,4344.6,4344.5,6.33466084]
[1760096689138,0.0008,4344.6,4344.5,8.25166084]
[1760096690638,0.0008,4344.6,4344.5,8.13726084]
[1760096690810,0.0008,4344.6,4344.5,13.12204024]
[1760096691011,0.0008,4344.6,4344.5,15.26352728]
[1760096691424,0.0008,4344.6,4344.5,14.52915024]
[1760096698849,0.002,4344.8,4344.7,2.30165488]
[1760096699158,0.002,4344.8,4344.7,5.76465488]
[1760096699444,0.002,4344.8,4344.7,6.22285488]
[1760096699649,0.002,4344.8,4344.7,7.90630539]
[1760096700447,0.002,4344.8,4344.7,15.81430539]
[1760096703136,0.002,4344.8,4344.7,8.13985488]
[1760096712467,0.002,4344.8,4344.5,0.001]
[1760096712882,0.09226358,4344.7,4344.6,5.38]
[1760096713969,0.09226358,4344.7,4344.6,7.68170786]
[1760096714174,0.09226358,4344.7,4344.6,8.13990786]
[1760096715996,0.09226358,4344.7,4344.6,5.38]
[1760096717063,0.09226358,4344.7,4344.6,7.68170786]
[1760096717260,0.09226358,4344.7,4344.6,8.13990786]
[1760096717496,0.002,4344.8,4344.7,2.30165488]
[1760096717795,0.002,4344.8,4344.7,2.78287142]
[1760096720512,0.002,4344.8,4344.7,7.68165488]
[1760096720688,0.002,4344.8,4344.7,8.13985488]
[1760096720885,0.0012,4344.8,4344.7,8.13985488]
[1760096722665,0.0012,4344.8,4344.7,8.25425488]
[1760096722936,0.0012,4344.8,4344.7,9.72365139]
[1760096731932,0.0012,4344.8,4344.7,9.60925139]
[1760096733324,0.0012,4344.8,4344.7,8.13985488]
[1760096741865,0.0012,4344.8,4344.7,8.25425488]
[1760096742823,0.002,4345.1,4344.7,8.25425488]
[1760096742824,1e-08,4345.1,4345.0,2.30149597]
[1760096743069,0.00120001,4345.3,4345.0,9.90049833]
[1760096743368,0.00120001,4345.3,4345.2,2.30139003]
[1760096743529,0.00120001,4345.3,4345.2,7.06225277]
[1760096743730,0.00120001,4345.3,4345.2,7.47143887]
[1760096746447,0.00120001,4345.3,4345.2,7.47043887]
[1760096746654,0.00120001,4345.3,4345.2,15.37743887]
[1760096753986,0.00120001,4345.3,4345.2,15.49183887]
[1760096757064,0.00120001,4345.3,4345.2,17.41183887]
[1760096761297,0.00120001,4345.3,4345.2,17.41083887]
[1760096761987,0.00120001,4345.3,4345.2,15.49083887]
[1760096765297,0.00040001,4345.3,4345.2,15.49083887]
[1760096767476,0.00040001,4345.3,4345.2,17.41083887]
[1760096773905,0.002,4345.7,4345.6,2.3011782]
[1760096774202,0.002,4345.7,4345.6,10.76657793]
[1760096774504,0.002,4345.7,4345.6,11.18656615]
[1760096783132,0.002,4345.7,4345.6,2.8585782]
[1760096783331,0.002,4345.7,4345.6,6.3195782]
[1760096783526,0.002,4345.7,4345.6,2.8585782]
[1760096783720,0.002,4345.7,4345.6,14.2245782]
[1760096787023,0.0012,4345.7,4345.6,8.2355782]
[1760096793635,0.0012,4345.7,4345.6,10.37476323]
[1760096798551,0.0012,4345.7,4345.6,12.18036323]
[1760096799417,0.002,4346.0,4345.8,2.30107229]
[1760096799601,0.002,4346.0,4345.8,10.65107096]
[1760096799805,0.002,4346.0,4345.8,11.07876024]
[1760096800137,0.002,4346.0,4345.8,13.01426729]
[1760096803640,0.002,4346.0,4345.8,9.55326729]
[1760096803842,0.002,4346.0,4345.8,20.91926729]
[1760096805232,0.012,4345.9,4345.8,20.91926729]
[1760096808652,0.012,4345.9,4345.8,21.03366729]
[1760096809228,0.0112,4345.9,4345.8,21.03366729]
[1760096813462,0.0112,4345.9,4345.8,20.3004074]
[1760096815936,0.0112,4345.9,4345.8,18.3844074]
[1760096816137,0.0112,4345.9,4345.8,20.3004074]
[1760096816464,0.0112,4345.9,4345.8,18.36490035]
[1760096820539,0.0112,4345.9,4345.8,6.54820035]
[1760096820764,0.0112,4345.9,4345.8,7.79247229]
[1760096821565,0.0112,4345.9,4345.8,5.4914]
[1760096821770,0.0112,4345.9,4345.6,0.001]
[1760096821771,0.0124,4345.9,4345.6,0.001]
[1760096821941,0.1268,4345.9,4345.8,1.916]
[1760096822276,0.1268,4345.9,4345.8,5.377]
[1760096822475,0.1256,4345.9,4345.8,5.377]
[1760096822680,0.1256,4345.9,4345.8,5.378]
[1760096823047,0.81744123,4345.9,4345.8,5.378]
[1760096827283,0.81864123,4345.9,4345.8,5.378]
[1760096829687,0.81744123,4345.9,4345.8,5.378]
[1760096830962,0.81744123,4345.9,4345.8,11.81180035]
[1760096831157,0.70224123,4345.9,4345.8,12.25580035]
[1760096831609,0.0104,4345.9,4345.8,12.25580035]
[1760096834367,0.0104,4345.9,4345.8,8.12307229]
[1760096836280,0.0104,4345.9,4345.8,13.72303638]
[1760096836483,0.0104,4345.9,4345.8,13.83743638]
[1760096836667,0.0104,4345.9,4345.8,17.97016444]
[1760096837403,0.0104,4345.9,4345.8,13.83743638]
[1760096838493,0.0104,4345.9,4345.8,8.46043638]
[1760096838796,0.0104,4345.9,4345.8,15.69470832]
[1760096839996,0.0104,4345.9,4345.8,19.82743638]
[1760096853426,0.0096,4345.9,4345.8,19.82743638]
[1760096873469,0.0096,4345.9,4345.8,20.55921927]
[1760096874659,0.0096,4345.9,4345.8,20.44481927]
[1760096874865,0.0096,4345.9,4345.8,20.55921927]
[1760096875485,0.0088,4345.9,4345.8,20.55921927]
[1760096882117,0.0088,4345.9,4345.8,9.19221927]
[1760096882319,0.0088,4345.9,4345.8,19.09098324]
[1760096883117,0.0088,4345.9,4345.8,14.22647229]
[1760096885629,0.0088,4345.9,4345.8,0.1154]
[1760096885824,0.0088,4345.9,4345.8,4.6784]
[1760096886322,0.0088,4345.9,4345.8,6.97947229]
[1760096887185,0.0088,4345.9,4345.8,4.6784]
[1760096887493,0.10423103,4345.9,4345.8,4.564]
[1760096887931,0.10303103,4345.9,4345.8,4.564]
[1760096888193,0.10423103,4345.9,4345.8,4.564]
[1760096888803,2.40525038,4345.9,4345.8,0.001]
[1760096889130,0.21863103,4345.9,4345.8,5.378]
[1760096889505,2.51965038,4345.9,4345.8,5.378]
[1760096890926,0.21863103,4345.9,4345.8,5.378]
[1760096891233,2.51965038,4345.9,4345.8,5.378]
[1760096892145,0.21863103,4345.9,4345.8,5.378]
[1760096892446,2.51965038,4345.9,4345.8,5.378]
[1760096893015,0.21863103,4345.9,4345.8,5.378]
[1760096893314,2.51965038,4345.9,4345.8,5.378]
[1760096893743,4.43965038,4345.9,4345.8,5.378]
[1760096894241,2.13863103,4345.9,4345.8,5.378]
[1760096895125,4.43965038,4345.9,4345.8,5.378]
[1760096896956,2.13863103,4345.9,4345.8,5.378]
[1760096897327,2.13743103,4345.9,4345.8,5.378]
[1760096897535,2.13663103,4345.9,4345.8,5.378]
[1760096898437,2.13783103,4345.9,4345.8,5.378]
[1760096898658,0.21663103,4345.9,4345.8,5.378]
[1760096899285,0.10223103,4345.9,4345.8,7.67907229]
[1760096899569,0.008,4345.9,4345.8,9.13069464]
[1760096899947,0.008,4345.9,4345.8,8.13257229]
[1760096906086,0.008,4345.9,4345.8,7.67907229]
[1760096906639,0.008,4345.9,4345.8,8.13257229]
[1760096911093,0.008,4345.9,4345.8,8.24697229]
[1760096913199,0.008,4345.9,4345.8,10.16697229]
[1760096913368,0.008,4345.9,4345.8,11.90955961]
[1760096919699,0.008,4345.9,4345.8,12.00176831]
[1760096919700,0.0072,4345.9,4345.8,12.00176831]
[1760096920972,0.0072,4345.9,4345.8,6.62476831]
[1760096921177,0.0072,4345.9,4345.8,17.99076831]
[1760096930236,0.0072,4345.9,4345.8,17.89855961]
[1760096934636,0.002,4346.0,4345.9,2.30101935]
[1760096934831,0.002,4346.0,4345.9,5.04999999]
[1760096935033,0.002,4346.0,4345.9,5.1191985]
[1760096935443,0.002,4346.0,4345.9,9.25176117]
[1760096936564,0.002,4346.0,4345.9,9.15955247]
[1760096941663,0.0012,4346.0,4345.9,9.15955247]
[1760096941847,0.0012,4346.0,4345.9,20.52455247]
[1760096942253,0.0012,4346.0,4345.9,6.23521935]
[1760096942484,0.0012,4346.0,4345.9,4.69121935]
[1760096942663,0.0012,4346.0,4345.9,1.916]
[1760096942974,0.0012,4346.0,4345.9,5.376]
[1760096943136,0.09543231,4346.0,4345.9,5.376]
[1760096943344,0.09663231,4346.0,4345.9,5.376]
[1760096944676,0.09543231,4346.0,4345.9,5.376]
[1760096948193,0.09543231,4346.0,4345.8,0.001]
[1760096948194,4.22799498,4346.0,4345.8,0.001]
[1760096948359,9.08256138,4346.0,4345.9,5.376]
[1760096948991,9.08376138,4346.0,4345.9,5.376]
[1760096951057,2.30101935,4345.9,4345.8,0.001]
[1760096951257,4.22101935,4345.9,4345.8,5.377]
[1760096951458,4.85581935,4345.9,4345.8,5.377]
[1760096951696,11.39875735,4345.9,4345.8,5.377]
[1760096952617,7.68901735,4345.9,4345.8,5.377]
[1760096953007,4.85581935,4345.9,4345.8,5.377]
[1760096953211,5.49773876,4345.9,4345.8,5.377]
[1760096955692,5.54773876,4345.9,4345.8,5.377]
[1760096956088,0.69191941,4345.9,4345.8,5.377]
[1760096956398,4.91413876,4345.9,4345.8,5.377]
[1760096956600,2.61311941,4345.9,4345.8,5.377]
[1760096958027,4.91413876,4345.9,4345.8,5.377]
[1760096961903,2.61311941,4345.9,4345.8,5.377]
[1760096962321,4.91413876,4345.9,4345.8,5.377]
[1760096962832,2.61191941,4345.9,4345.8,5.377]
[1760096963346,4.91293876,4345.9,4345.8,5.377]
[1760096963512,4.91413876,4345.9,4345.8,5.377]
[1760096963712,4.91333876,4345.9,4345.8,5.377]
[1760096965607,4.91213876,4345.9,4345.8,5.377]
[1760096965952,4.91333876,4345.9,4345.8,5.377]
[1760096971827,4.91333876,4345.9,4345.8,0.001]
[1760096972030,4.91333876,4345.9,4345.8,5.379]
[1760096972251,5.40727914,4345.9,4345.8,5.379]
[1760096972468,5.40847914,4345.9,4345.8,5.379]
[1760096973557,3.10745979,4345.9,4345.8,5.379]
[1760096973723,5.40847914,4345.9,4345.8,5.379]
[1760096973932,3.10625979,4345.9,4345.8,5.379]
[1760096974253,2.61111941,4345.9,4345.8,5.379]
[1760096974565,1.92,4345.9,4345.8,5.379]
[1760096975432,4.22221935,4345.9,4345.8,5.379]
[1760096977059,1.9212,4345.9,4345.8,5.379]
[1760096979351,4.71785672,4345.9,4345.8,5.379]
[1760096979556,4.71985672,4345.9,4345.8,5.379]
[1760096980445,4.71985672,4345.9,4345.8,1.918]